fUSD/lending_fUSD_20260513
["ID","MTS","AMOUNT","RATE_DAILY","PERIOD"]
[422172985,1778646646000,-314.0,0.000315,2]
[422172984,1778646646000,-1341.707239,0.000315,7]
[422172982,1778646646000,-1341.707239,0.000315,7]
[422172988,1778646646000,-170.0,0.000316,7]
[422172990,1778646646000,-151.0,0.00031629,30]
[422172992,1778646646000,-156.0,0.00031638,30]
[422172993,1778646646000,-156.0,0.00031638,30]
[422172991,1778646646000,-152.0,0.00031629,30]
[422172989,1778646646000,-1279.0,0.000316,14]
[422172994,1778646646000,-189.0,0.00031638,30]
[422172995,1778646646000,-508.0,0.0003165,9]
[422172973,1778646646000,-175.0,0.00030701,30]
[422172970,1778646646000,-1161.0,0.00030701,30]
[422172939,1778646646000,-150.0,0.00029716,2]
[422172969,1778646646000,-189.0,0.00030638,30]
[422172971,1778646646000,-156.0,0.00030701,30]
[422172940,1778646646000,-299.0,0.00029716,2]
[422172933,1778646646000,-150.0,0.00029716,2]
[422172942,1778646646000,-4999.0,0.0003,2]
[422172941,1778646646000,-75255.93685587,0.000299,2]
[422172943,1778646646000,-10432.26574323,0.0003,5]
[422172945,1778646646000,-2000.0,0.0003,3]
[422172946,1778646646000,-796.21065507,0.0003,2]
[422172944,1778646646000,-328.05002111,0.0003,5]
[422172947,1778646646000,-245.0,0.00030054,2]
[422172950,1778646646000,-200.0,0.00030137,2]
[422172948,1778646646000,-187.0,0.00030061,2]
[422172949,1778646646000,-643.66352651,0.0003013,2]
[422172938,1778646646000,-150.0,0.00029716,2]
[422172951,1778646646000,-299.30487589,0.00030137,40]
[422172963,1778646646000,-151.0,0.00030629,30]
[422172962,1778646646000,-375.42,0.000305,7]
[422172964,1778646646000,-152.0,0.00030629,30]
[422172961,1778646646000,-163.0,0.00030447,2]
[422172959,1778646646000,-150.0,0.00030447,2]
[422172960,1778646646000,-150.0,0.00030447,2]
[422172955,1778646646000,-1121.5503152,0.00030149,2]
[422172956,1778646646000,-14869.375872,0.00030149,2]
[422172957,1778646646000,-152.0,0.00030418,7]
[422172954,1778646646000,-2001.4888763,0.00030149,2]
[422172953,1778646646000,-3156.1668201,0.00030149,2]
[422172958,1778646646000,-508.0,0.00030441,8]
[422172952,1778646646000,-858.14917869,0.00030137,2]
[422173031,1778646647000,-175.0,0.00032701,30]
[422173038,1778646647000,-151.0,0.00032877,7]
[422173039,1778646647000,-151.0,0.00032877,7]
[422173037,1778646647000,-151.0,0.00032877,7]
[422173026,1778646647000,-169.0,0.00032541,2]
[422173032,1778646647000,-508.0,0.00032859,10]
[422173030,1778646647000,-160.0,0.00032701,30]
[422173028,1778646647000,-189.0,0.00032638,30]
[422173029,1778646647000,-1161.0,0.00032701,30]
[422173027,1778646647000,-164.0,0.00032638,30]
[422173042,1778646647000,-161.628956,0.00032877,7]
[422173041,1778646647000,-151.0,0.00032877,7]
[422173045,1778646647000,-29649.29741832,0.00033,3]
[422173040,1778646647000,-151.0,0.00032877,7]
[422173036,1778646647000,-161.451938,0.00032877,7]
[422173034,1778646647000,-151.0,0.00032877,7]
[422173043,1778646647000,-176.999345,0.00033,14]
[422173054,1778646647000,-704.236008,0.00033529,2]
[422173055,1778646647000,-446.5925335,0.00033529,2]
[422173044,1778646647000,-46619.90589568,0.00033,5]
[422173046,1778646647000,-6326.99158588,0.00033,120]
[422173047,1778646647000,-2339.93181965,0.00033,30]
[422173051,1778646647000,-6306.03,0.0003305,7]
[422173024,1778646647000,-150.0,0.00032541,2]
[422173035,1778646647000,-151.0,0.00032877,7]
[422173023,1778646647000,-150.0,0.00032541,2]
[422173008,1778646647000,-151.0,0.00032463,7]
[422173022,1778646647000,-749.321439,0.00032463,7]
[422172999,1778646647000,-154.0,0.00031701,30]
[422172997,1778646647000,-1161.0,0.00031701,30]
[422172998,1778646647000,-156.0,0.00031701,30]
[422173001,1778646647000,-498.03246933,0.00032,120]
[422173000,1778646647000,-175.0,0.00031701,30]
[422173002,1778646647000,-200.0,0.00032055,2]
[422173004,1778646647000,-1491.0,0.00032228,5]
[422173003,1778646647000,-1408.0,0.00032228,5]
[422173005,1778646647000,-14000.0,0.00032463,7]
[422173007,1778646647000,-151.0,0.00032463,7]
[422173006,1778646647000,-159.119438,0.00032463,7]
[422173009,1778646647000,-151.0,0.00032463,7]
[422173019,1778646647000,-749.321439,0.00032463,7]
[422173052,1778646647000,-585.0,0.00033383,2]
[422173010,1778646647000,-162.157036,0.00032463,7]
[422173018,1778646647000,-227.602348,0.00032463,7]
[422173016,1778646647000,-227.602348,0.00032463,7]
[422173014,1778646647000,-276.303252,0.00032463,7]
[422173011,1778646647000,-276.303252,0.00032463,7]
[422173015,1778646647000,-227.602348,0.00032463,7]
[422173012,1778646647000,-276.303252,0.00032463,7]
[422173013,1778646647000,-276.303252,0.00032463,7]
[422173017,1778646647000,-227.602348,0.00032463,7]
[422173020,1778646647000,-749.321439,0.00032463,7]
[422173021,1778646647000,-749.321439,0.00032463,7]
[422173025,1778646647000,-150.0,0.00032541,2]
[422173049,1778646647000,-350.0,0.00033014,5]
[422173033,1778646647000,-166.0,0.00032877,2]
[422173048,1778646647000,-214.91342137,0.00033,30]
[422173084,1778646647000,-49683.0,0.00034801,60]
[422173087,1778646647000,-203.8818299,0.00035,120]
[422173083,1778646647000,-1500.0,0.00034795,2]
[422173085,1778646647000,-186.76281386,0.00035,120]
[422173099,1778646647000,-400.0,0.00035192,3]
[422173098,1778646647000,-500.0,0.00035192,3]
[422173101,1778646647000,-206.4843588,0.00035223,120]
[422173093,1778646647000,-500.0,0.00035084,3]
[422173097,1778646647000,-400.0,0.00035192,3]
[422173100,1778646647000,-1500.0,0.000352,7]
[422173089,1778646647000,-699.43,0.00035067,30]
[422173092,1778646647000,-453.85917334,0.00035084,3]
[422173091,1778646647000,-500.0,0.00035084,3]
[422173095,1778646647000,-453.85917333,0.00035084,3]
[422173090,1778646647000,-500.0,0.00035084,3]
[422173094,1778646647000,-500.0,0.00035084,3]
[422173096,1778646647000,-500.0,0.00035192,3]
[422173105,1778646647000,-227.35436347,0.00035423,2]
[422173108,1778646647000,-1000.0,0.00035616,10]
[422173106,1778646647000,-1000.0,0.00035616,120]
[422173102,1778646647000,-508.0,0.00035276,13]
[422173104,1778646647000,-152.0,0.00035423,2]
[422173109,1778646647000,-1000.0,0.00035616,10]
[422173107,1778646647000,-1000.0,0.00035616,10]
[422173053,1778646647000,-510.0,0.00033383,2]
[422173088,1778646647000,-1559.15132862,0.00035,2]
[422173080,1778646647000,-1161.0,0.00034701,30]
[422173103,1778646647000,-1097.67,0.00035319,7]
[422173078,1778646647000,-929.64,0.00034606,2]
[422173081,1778646647000,-175.0,0.00034701,30]
[422173057,1778646647000,-3317.8062196,0.00033529,2]
[422173056,1778646647000,-250.2517014,0.00033529,2]
[422173063,1778646647000,-1090.051,0.00033846,37]
[422173059,1778646647000,-375.42,0.000336,7]
[422173058,1778646647000,-153.21808319,0.000336,120]
[422173061,1778646647000,-1161.0,0.00033701,30]
[422173060,1778646647000,-189.0,0.00033638,30]
[422173062,1778646647000,-175.0,0.00033701,30]
[422173066,1778646647000,-10119.9307845,0.00034208,2]
[422173064,1778646647000,-152.0,0.00033979,4]
[422173065,1778646647000,-508.0,0.00034067,12]
[422173075,1778646647000,-929.64,0.00034604,2]
[422173050,1778646647000,-332.0,0.00033039,2]
[422173068,1778646647000,-3541.0,0.00034431,2]
[422173076,1778646647000,-929.67,0.00034606,2]
[422173086,1778646647000,-526.0,0.00035,5]
[422173082,1778646647000,-6306.03,0.00034721,14]
[422173077,1778646647000,-929.64,0.00034606,2]
[422173073,1778646647000,-929.64,0.00034604,2]
[422173079,1778646647000,-189.0,0.00034638,30]
[422173074,1778646647000,-929.64,0.00034604,2]
[422173072,1778646647000,-929.64,0.00034602,2]
[422173071,1778646647000,-929.64,0.00034602,2]
[422173070,1778646647000,-2000.0,0.00034481,2]
[422173067,1778646647000,-1279.0,0.000344,14]
[422173069,1778646647000,-1000.0,0.00034481,2]
[422173146,1778646648000,-1170.488914,0.00037,7]
[422173142,1778646648000,-1000.0,0.00036986,120]
[422173145,1778646648000,-1170.488914,0.00037,7]
[422173143,1778646648000,-41000.0,0.00037,20]
[422173139,1778646648000,-175.0,0.00036701,30]
[422173144,1778646648000,-151.0,0.00037,7]
[422173149,1778646648000,-151.0,0.00037,7]
[422173138,1778646648000,-1161.0,0.00036701,30]
[422173147,1778646648000,-1170.488914,0.00037,7]
[422173141,1778646648000,-305.75,0.00036806,10]
[422173161,1778646648000,-151.611104,0.00037131,7]
[422173153,1778646648000,-151.0,0.00037,7]
[422173156,1778646648000,-178.384317,0.00037,7]
[422173163,1778646648000,-151.0,0.00037151,7]
[422173151,1778646648000,-151.0,0.00037,7]
[422173140,1778646648000,-211.13,0.00036794,10]
[422173150,1778646648000,-151.0,0.00037,7]
[422173158,1778646648000,-178.384317,0.00037,7]
[422173162,1778646648000,-2123.0974,0.00037149,2]
[422173157,1778646648000,-178.384317,0.00037,7]
[422173155,1778646648000,-151.0,0.00037,7]
[422173152,1778646648000,-151.0,0.00037,7]
[422173160,1778646648000,-365.0,0.00037073,2]
[422173154,1778646648000,-151.0,0.00037,7]
[422173159,1778646648000,-178.384317,0.00037,7]
[422173148,1778646648000,-1170.488914,0.00037,7]
[422173128,1778646648000,-281.24825172,0.000359,120]
[422173134,1778646648000,-508.0,0.00036485,14]
[422173164,1778646648000,-151.0,0.00037151,7]
[422173113,1778646648000,-1000.0,0.00035616,10]
[422173112,1778646648000,-1000.0,0.00035616,10]
[422173111,1778646648000,-1000.0,0.00035616,10]
[422173114,1778646648000,-1000.0,0.00035616,10]
[422173110,1778646648000,-1000.0,0.00035616,10]
[422173126,1778646648000,-175.0,0.00035701,30]
[422173122,1778646648000,-1000.0,0.00035616,10]
[422173125,1778646648000,-1161.0,0.00035701,30]
[422173120,1778646648000,-1000.0,0.00035616,10]
[422173115,1778646648000,-1000.0,0.00035616,10]
[422173119,1778646648000,-1000.0,0.00035616,10]
[422173117,1778646648000,-1000.0,0.00035616,10]
[422173116,1778646648000,-1000.0,0.00035616,10]
[422173118,1778646648000,-1000.0,0.00035616,10]
[422173124,1778646648000,-189.0,0.00035638,30]
[422173121,1778646648000,-1000.0,0.00035616,10]
[422173127,1778646648000,-184.09,0.0003582,30]
[422173130,1778646648000,-1279.0,0.00036,14]
[422173132,1778646648000,-171.42121239,0.00036313,120]
[422173131,1778646648000,-152.0,0.00036266,5]
[422173129,1778646648000,-375.42,0.000359,7]
[422173133,1778646648000,-6306.03,0.00036391,30]
[422173135,1778646648000,-49683.0,0.00036601,60]
[422173136,1778646648000,-189.0,0.00036638,30]
[422173137,1778646648000,-157.57,0.0003669,30]
[422173123,1778646648000,-220.88818382,0.00035616,2]
[422173165,1778646648000,-289.443261,0.00037151,7]
[422173175,1778646648000,-348.961651,0.00037277,7]
[422173197,1778646648000,-301.70878526,0.00037278,2]
[422173200,1778646648000,-300.0,0.00037278,2]
[422173199,1778646648000,-300.4836212,0.00037278,2]
[422173202,1778646648000,-300.45544257,0.00037278,2]
[422173201,1778646648000,-300.73417114,0.00037278,2]
[422173195,1778646648000,-725.87349266,0.00037278,2]
[422173204,1778646648000,-300.0,0.00037278,2]
[422173203,1778646648000,-333.52267303,0.00037278,2]
[422173205,1778646648000,-856.68926849,0.00037278,2]
[422173206,1778646648000,-300.0,0.00037278,2]
[422173207,1778646648000,-1911.85385745,0.00037278,2]
[422173211,1778646648000,-310.61474243,0.00037278,2]
[422173208,1778646648000,-343.88369636,0.00037278,2]
[422173210,1778646648000,-1150.9475144,0.00037278,2]
[422173209,1778646648000,-526.74681901,0.00037278,2]
[422173212,1778646648000,-300.55580641,0.00037278,2]
[422173213,1778646648000,-1933.58055399,0.00037278,2]
[422173215,1778646648000,-300.15194547,0.00037278,2]
[422173216,1778646648000,-300.0,0.00037278,2]
[422173214,1778646648000,-330.01706332,0.00037278,2]
[422173217,1778646648000,-300.63750532,0.00037278,2]
[422173218,1778646648000,-453.52540149,0.00037278,2]
[422173220,1778646648000,-300.0,0.00037278,2]
[422173221,1778646648000,-483.96406548,0.00037278,2]
[422173166,1778646648000,-289.443261,0.00037151,7]
[422173196,1778646648000,-300.0,0.00037278,2]
[422173193,1778646648000,-1066.61966841,0.00037278,2]
[422173219,1778646648000,-300.64672855,0.00037278,2]
[422173194,1778646648000,-896.34373003,0.00037278,2]
[422173173,1778646648000,-348.961651,0.00037277,7]
[422173167,1778646648000,-289.443261,0.00037151,7]
[422173174,1778646648000,-472.848313,0.00037277,7]
[422173171,1778646648000,-151.0,0.00037151,7]
[422173176,1778646648000,-472.848313,0.00037277,7]
[422173177,1778646648000,-348.961651,0.00037277,7]
[422173170,1778646648000,-151.0,0.00037151,7]
[422173198,1778646648000,-300.0,0.00037278,2]
[422173168,1778646648000,-289.443261,0.00037151,7]
[422173169,1778646648000,-151.0,0.00037151,7]
[422173184,1778646648000,-152.305271,0.00037277,7]
[422173178,1778646648000,-472.848313,0.00037277,7]
[422173172,1778646648000,-178.45921432,0.000372,120]
[422173190,1778646648000,-300.0,0.00037278,2]
[422173192,1778646648000,-300.0,0.00037278,2]
[422173186,1778646648000,-151.0,0.00037277,7]
[422173191,1778646648000,-527.6022146,0.00037278,2]
[422173187,1778646648000,-151.0,0.00037277,7]
[422173185,1778646648000,-151.0,0.00037277,7]
[422173179,1778646648000,-348.961651,0.00037277,7]
[422173183,1778646648000,-151.0,0.00037277,7]
[422173181,1778646648000,-151.0,0.00037277,7]
[422173189,1778646648000,-300.48528773,0.00037278,2]
[422173188,1778646648000,-154.410216,0.00037277,7]
[422173180,1778646648000,-472.848313,0.00037277,7]
[422173182,1778646648000,-151.0,0.00037277,7]
[422173254,1778646649000,-300.0,0.00037278,2]
[422173260,1778646649000,-1094.44656272,0.00037278,2]
[422173258,1778646649000,-317.48500943,0.00037278,2]
[422173255,1778646649000,-300.0,0.00037278,2]
[422173250,1778646649000,-300.0,0.00037278,2]
[422173251,1778646649000,-579.36493634,0.00037278,2]
[422173257,1778646649000,-309.75646752,0.00037278,2]
[422173256,1778646649000,-301.06322919,0.00037278,2]
[422173252,1778646649000,-300.55143648,0.00037278,2]
[422173253,1778646649000,-453.52540149,0.00037278,2]
[422173270,1778646649000,-529.35849686,0.00037278,2]
[422173276,1778646649000,-301.70878526,0.00037278,2]
[422173263,1778646649000,-300.0,0.00037278,2]
[422173271,1778646649000,-1066.61966841,0.00037278,2]
[422173262,1778646649000,-300.0,0.00037278,2]
[422173261,1778646649000,-300.0,0.00037278,2]
[422173265,1778646649000,-492.55383622,0.00037278,2]
[422173267,1778646649000,-604.28857032,0.00037278,2]
[422173264,1778646649000,-300.0,0.00037278,2]
[422173266,1778646649000,-300.0,0.00037278,2]
[422173269,1778646649000,-300.0,0.00037278,2]
[422173268,1778646649000,-300.0,0.00037278,2]
[422173248,1778646649000,-300.51069385,0.00037278,2]
[422173259,1778646649000,-300.0,0.00037278,2]
[422173249,1778646649000,-310.8122113,0.00037278,2]
[422173234,1778646649000,-300.44422917,0.00037278,2]
[422173243,1778646649000,-1146.85439814,0.00037278,2]
[422173272,1778646649000,-893.15010961,0.00037278,2]
[422173223,1778646649000,-300.0,0.00037278,2]
[422173224,1778646649000,-300.50028789,0.00037278,2]
[422173222,1778646649000,-311.40986197,0.00037278,2]
[422173226,1778646649000,-300.0,0.00037278,2]
[422173225,1778646649000,-300.86031602,0.00037278,2]
[422173227,1778646649000,-300.0,0.00037278,2]
[422173230,1778646649000,-494.30646414,0.00037278,2]
[422173228,1778646649000,-300.4650572,0.00037278,2]
[422173231,1778646649000,-300.0,0.00037278,2]
[422173229,1778646649000,-300.0,0.00037278,2]
[422173241,1778646649000,-300.54321209,0.00037278,2]
[422173233,1778646649000,-527.6022146,0.00037278,2]
[422173235,1778646649000,-1066.61966841,0.00037278,2]
[422173238,1778646649000,-302.75204119,0.00037278,2]
[422173237,1778646649000,-300.57796734,0.00037278,2]
[422173236,1778646649000,-725.87349266,0.00037278,2]
[422173240,1778646649000,-300.0,0.00037278,2]
[422173239,1778646649000,-300.0,0.00037278,2]
[422173242,1778646649000,-1917.6869927,0.00037278,2]
[422173244,1778646649000,-309.50271907,0.00037278,2]
[422173245,1778646649000,-867.36588542,0.00037278,2]
[422173246,1778646649000,-1755.48763153,0.00037278,2]
[422173247,1778646649000,-300.0,0.00037278,2]
[422173232,1778646649000,-300.92636977,0.00037278,2]
[422173273,1778646649000,-300.0,0.00037278,2]
[422173284,1778646649000,-300.0,0.00037278,2]
[422173283,1778646649000,-1911.85385744,0.00037278,2]
[422173303,1778646649000,-300.0,0.00037278,2]
[422173305,1778646649000,-309.75646752,0.00037278,2]
[422173308,1778646649000,-1094.44656272,0.00037278,2]
[422173300,1778646649000,-450.0466455,0.00037278,2]
[422173310,1778646649000,-300.0,0.00037278,2]
[422173311,1778646649000,-300.0,0.00037278,2]
[422173313,1778646649000,-300.60852153,0.00037278,2]
[422173312,1778646649000,-300.0,0.00037278,2]
[422173318,1778646649000,-604.28857031,0.00037278,2]
[422173315,1778646649000,-364.52848235,0.00037278,2]
[422173323,1778646649000,-893.15010961,0.00037278,2]
[422173304,1778646649000,-483.96406548,0.00037278,2]
[422173320,1778646649000,-300.0,0.00037278,2]
[422173316,1778646649000,-300.0,0.00037278,2]
[422173317,1778646649000,-300.0,0.00037278,2]
[422173319,1778646649000,-300.0,0.00037278,2]
[422173314,1778646649000,-300.0,0.00037278,2]
[422173328,1778646649000,-300.0,0.00037278,2]
[422173326,1778646649000,-300.0,0.00037278,2]
[422173325,1778646649000,-725.87349266,0.00037278,2]
[422173324,1778646649000,-590.75679528,0.00037278,2]
[422173329,1778646649000,-301.48455398,0.00037278,2]
[422173327,1778646649000,-301.70878525,0.00037278,2]
[422173274,1778646649000,-725.87349266,0.00037278,2]
[422173322,1778646649000,-1070.01790901,0.00037278,2]
[422173307,1778646649000,-300.0,0.00037278,2]
[422173321,1778646649000,-300.0,0.00037278,2]
[422173306,1778646649000,-300.98575595,0.00037278,2]
[422173275,1778646649000,-300.0,0.00037278,2]
[422173298,1778646649000,-300.0,0.00037278,2]
[422173281,1778646649000,-300.0,0.00037278,2]
[422173279,1778646649000,-381.12752308,0.00037278,2]
[422173282,1778646649000,-300.0,0.00037278,2]
[422173280,1778646649000,-300.0,0.00037278,2]
[422173278,1778646649000,-300.48362119,0.00037278,2]
[422173288,1778646649000,-309.50271907,0.00037278,2]
[422173286,1778646649000,-300.51493316,0.00037278,2]
[422173289,1778646649000,-864.21260631,0.00037278,2]
[422173285,1778646649000,-526.74681901,0.00037278,2]
[422173287,1778646649000,-1146.85439813,0.00037278,2]
[422173277,1778646649000,-300.0,0.00037278,2]
[422173294,1778646649000,-311.8445281,0.00037278,2]
[422173299,1778646649000,-300.55143648,0.00037278,2]
[422173301,1778646649000,-300.0,0.00037278,2]
[422173309,1778646649000,-300.0,0.00037278,2]
[422173302,1778646649000,-510.40096168,0.00037278,2]
[422173293,1778646649000,-300.0,0.00037278,2]
[422173292,1778646649000,-300.0,0.00037278,2]
[422173291,1778646649000,-1755.48763153,0.00037278,2]
[422173290,1778646649000,-300.0,0.00037278,2]
[422173295,1778646649000,-300.0,0.00037278,2]
[422173296,1778646649000,-300.55024054,0.00037278,2]
[422173297,1778646649000,-463.72172131,0.00037278,2]
[422173371,1778646650000,-1089.6651659,0.00037983,20]
[422173370,1778646650000,-157.72297697,0.0003797,2]
[422173369,1778646650000,-2123.0974,0.00037768,2]
[422173373,1778646650000,-494.513,0.00038,120]
[422173365,1778646650000,-245.0,0.00037509,2]
[422173374,1778646650000,-220.1,0.00038,120]
[422173364,1778646650000,-280.94521581,0.00037509,2]
[422173368,1778646650000,-1444.0,0.00037753,120]
[422173366,1778646650000,-359.07223566,0.00037539,5]
[422173356,1778646650000,-301.16299679,0.00037278,2]
[422173363,1778646650000,-14000.0,0.00037463,7]
[422173372,1778646650000,-983.83201375,0.00037983,20]
[422173367,1778646650000,-508.0,0.00037694,15]
[422173375,1778646650000,-200.86501189,0.00038,2]
[422173396,1778646650000,-500.0,0.00038356,2]
[422173377,1778646650000,-12728.85214889,0.00038,2]
[422173378,1778646650000,-161.52,0.00038,120]
[422173380,1778646650000,-2123.0974,0.00038077,2]
[422173381,1778646650000,-570.79180423,0.000381,33]
[422173382,1778646650000,-200.0,0.00038184,6]
[422173379,1778646650000,-6306.03,0.00038061,30]
[422173385,1778646650000,-1309.49092693,0.00038208,2]
[422173383,1778646650000,-200.0,0.0003819,6]
[422173384,1778646650000,-200.0,0.0003819,6]
[422173386,1778646650000,-238.99668128,0.00038208,2]
[422173388,1778646650000,-200.0,0.00038222,6]
[422173394,1778646650000,-500.0,0.00038356,2]
[422173353,1778646650000,-300.0,0.00037278,2]
[422173376,1778646650000,-1279.0,0.00038,14]
[422173362,1778646650000,-2123.0974,0.00037458,2]
[422173337,1778646650000,-343.88369636,0.00037278,2]
[422173359,1778646650000,-345.09358166,0.00037278,2]
[422173334,1778646650000,-300.60868028,0.00037278,2]
[422173335,1778646650000,-300.0,0.00037278,2]
[422173332,1778646650000,-300.0,0.00037278,2]
[422173330,1778646650000,-300.0,0.00037278,2]
[422173336,1778646650000,-300.56091381,0.00037278,2]
[422173333,1778646650000,-853.95058635,0.00037278,2]
[422173331,1778646650000,-300.0,0.00037278,2]
[422173339,1778646650000,-864.2126063,0.00037278,2]
[422173346,1778646650000,-486.27731365,0.00037278,2]
[422173392,1778646650000,-500.0,0.00038356,2]
[422173341,1778646650000,-300.57597218,0.00037278,2]
[422173344,1778646650000,-300.0,0.00037278,2]
[422173347,1778646650000,-301.64638083,0.00037278,2]
[422173354,1778646650000,-300.0,0.00037278,2]
[422173338,1778646650000,-528.61436146,0.00037278,2]
[422173342,1778646650000,-300.0,0.00037278,2]
[422173349,1778646650000,-300.0,0.00037278,2]
[422173350,1778646650000,-300.63167859,0.00037278,2]
[422173345,1778646650000,-300.00000001,0.00037278,2]
[422173348,1778646650000,-378.69464343,0.00037278,2]
[422173343,1778646650000,-465.60508682,0.00037278,2]
[422173357,1778646650000,-348.57884027,0.00037278,2]
[422173351,1778646650000,-300.0,0.00037278,2]
[422173358,1778646650000,-853.95058635,0.00037278,2]
[422173352,1778646650000,-300.67819865,0.00037278,2]
[422173360,1778646650000,-220.16,0.00037301,2]
[422173361,1778646650000,-3161.985,0.00037431,2]
[422173355,1778646650000,-730.50214987,0.00037278,2]
[422173340,1778646650000,-300.54001455,0.00037278,2]
[422173389,1778646650000,-157.72297697,0.00038244,2]
[422173438,1778646650000,-500.0,0.00038356,2]
[422173391,1778646650000,-174.18846205,0.0003835,120]
[422173427,1778646650000,-500.0,0.00038356,2]
[422173434,1778646650000,-500.0,0.00038356,2]
[422173425,1778646650000,-500.0,0.00038356,2]
[422173436,1778646650000,-500.0,0.00038356,2]
[422173426,1778646650000,-500.0,0.00038356,2]
[422173430,1778646650000,-500.0,0.00038356,2]
[422173432,1778646650000,-500.0,0.00038356,2]
[422173428,1778646650000,-500.0,0.00038356,2]
[422173433,1778646650000,-500.0,0.00038356,2]
[422173431,1778646650000,-346.95149823,0.00038356,2]
[422173429,1778646650000,-500.0,0.00038356,2]
[422173437,1778646650000,-500.0,0.00038356,2]
[422173439,1778646650000,-500.0,0.00038356,2]
[422173423,1778646650000,-500.0,0.00038356,2]
[422173441,1778646650000,-458.37215967,0.00038356,2]
[422173440,1778646650000,-500.0,0.00038356,2]
[422173444,1778646650000,-500.0,0.00038356,2]
[422173442,1778646650000,-1001.6946586,0.00038356,7]
[422173443,1778646650000,-151.0,0.00038356,7]
[422173445,1778646650000,-500.0,0.00038356,2]
[422173447,1778646650000,-500.0,0.00038356,2]
[422173449,1778646650000,-500.0,0.00038356,2]
[422173450,1778646650000,-500.0,0.00038356,2]
[422173448,1778646650000,-500.0,0.00038356,2]
[422173452,1778646650000,-500.0,0.00038356,2]
[422173451,1778646650000,-500.0,0.00038356,2]
[422173454,1778646650000,-500.0,0.00038356,2]
[422173390,1778646650000,-175.88953785,0.00038329,120]
[422173446,1778646650000,-500.0,0.00038356,2]
[422173435,1778646650000,-500.0,0.00038356,2]
[422173453,1778646650000,-500.0,0.00038356,2]
[422173414,1778646650000,-500.0,0.00038356,2]
[422173387,1778646650000,-157.57,0.0003822,60]
[422173395,1778646650000,-500.0,0.00038356,2]
[422173393,1778646650000,-500.0,0.00038356,2]
[422173397,1778646650000,-500.0,0.00038356,2]
[422173399,1778646650000,-500.0,0.00038356,2]
[422173409,1778646650000,-407.19620485,0.00038356,2]
[422173398,1778646650000,-500.0,0.00038356,2]
[422173401,1778646650000,-500.0,0.00038356,2]
[422173424,1778646650000,-500.0,0.00038356,2]
[422173400,1778646650000,-500.0,0.00038356,2]
[422173403,1778646650000,-500.0,0.00038356,2]
[422173406,1778646650000,-500.0,0.00038356,2]
[422173407,1778646650000,-500.0,0.00038356,2]
[422173408,1778646650000,-500.0,0.00038356,2]
[422173402,1778646650000,-500.0,0.00038356,2]
[422173404,1778646650000,-415.69729798,0.00038356,2]
[422173419,1778646650000,-500.0,0.00038356,2]
[422173405,1778646650000,-500.0,0.00038356,2]
[422173420,1778646650000,-500.0,0.00038356,2]
[422173418,1778646650000,-500.0,0.00038356,2]
[422173417,1778646650000,-500.0,0.00038356,2]
[422173415,1778646650000,-500.0,0.00038356,2]
[422173416,1778646650000,-500.0,0.00038356,2]
[422173422,1778646650000,-500.0,0.00038356,2]
[422173421,1778646650000,-500.0,0.00038356,2]
[422173411,1778646650000,-500.0,0.00038356,2]
[422173412,1778646650000,-500.0,0.00038356,2]
[422173410,1778646650000,-500.0,0.00038356,2]